Cogmind - Beta 16 @@@ ROGUE MODE // 2025.11.12 @ 15:25:07 Player: Darcyisverycute Result: Escaped! Performance ------------- Evolutions (9) 4500 Regions Visited (19) 3800 Robots Destroyed (371) 1855 Value Destroyed (14556) 14556 Prototype IDs (87) 1740 Alien Tech Used (0) 0 Bonus (8272) 8272 TOTAL SCORE: 34723 Bonus ------- Triggered High Security 500 High Alert Combat Kills 3340 Follower Combat Kills 432 Destroyed Unchained 1000 Win 3000 Cogmind --------- Core Integrity 264/1600 Matter 300/300 Energy 46/100 System Corruption 16% Temperature Cool (2) Movement Hovering (60) Location To Epsilon Eridani Parts ------- > --- POWER (2) -------- (None) > --- PROPULSION (8) --- Combat Linear Gravjet > --- UTILITY (12) ----- Medium Storage Unit Experimental Optical Array Advanced Melee Analysis Suite Experimental Melee Analysis Suite Improved Armor Integrity Analyzer Microactuators Graphene Brace Experimental Hacking Suite > --- WEAPON (3) ------- (None) > --- INVENTORY (10) --- Myomer Leg Myomer Leg High-density Centrium Leg Advanced Coolant Injector Small Battery (0) Advanced Matter Compressor (300) Microactuators Advanced Point Defense System Enhanced Nova Cannon Multirail Peak State ------------ > --- POWER ------------ Light Particle Reactor Light Quantum Reactor > --- PROPULSION ------- Antigrav System Improved Antigrav System Improved Antigrav System Improved Linear Gravjet Combat Linear Gravjet Combat Linear Gravjet Combat Linear Gravjet Cooled Field Propulsion Drive > --- UTILITY ---------- Experimental Optical Array Long-range Sensor Array Experimental Signal Interpreter Experimental Melee Analysis Suite Improved Armor Integrity Analyzer Advanced Transmission Jammer Advanced Reaction Control System Advanced Phase Shifter Graphene Brace Improved Hacking Suite Experimental Hacking Suite Experimental Hacking Suite > --- WEAPON ----------- Enhanced Nova Cannon Nanosword Nanosword > --- INVENTORY -------- Microactuators Advanced ECM Suite Guided EMP Blaster [Rating: 197] Favorites ----------- Power Micro Fission Core Engine Cooled Ion Engine Power Core Micro Fission Core Reactor Light Quantum Reactor Propulsion Cooled VTOL Module Treads Light Treads Leg High-density Centrium Leg Wheel Wheel Hover Unit Improved Antigrav System Flight Unit Cooled VTOL Module Utility Advanced Hacking Suite Device Improved Sensor Array Storage Medium Storage Unit Processor Advanced Signal Interpreter Hackware Advanced Hacking Suite Protection Light Armor Plating Weapon Assault Rifle Energy Gun Improved EM Shotgun Energy Cannon Enhanced Nova Cannon Ballistic Gun Assault Rifle Ballistic Cannon Tri-rail Accelerator Launcher Guided EMP Blaster Special Weapon Mining Laser Slashing Weapon Nanosword Piercing Weapon Spear Special Melee Weapon Improved Datajack Build | -11 -10 -9 -8 -7 -7 -7 -6 -6 -6 -5 -5 -5 -4 -4 -4 -3 -2 -1 -1 ------- Run | Yrd Mat Mat Mat Fac Was Fac Fac Was Fac Fac Was Fac Fac Was Fac Res Res Acc Com Slots Evolved 18 | . . 2 2 2 . . 2 . . 2 . . 2 . . 2 2 2 . Power 1 | . . . . . . . . . . . . . 1 . . . . . . Propulsion 6 | . . 1 1 . . . 1 . . . . . 1 . . 1 . 1 . Utility 10 | . . 1 1 2 . . 1 . . 2 . . . . . 1 2 . . Weapon 1 | . . . . . . . . . . . . . . . . . . 1 . Parts Attached 244 | 8 8 30 27 18 2 7 8 . 12 9 1 8 9 2 19 12 9 30 25 Power 29 | 1 1 4 2 2 . 2 . . . 1 . 1 1 . 6 1 1 4 2 Engine 8 | 1 . 4 . . . . . . . . . . 1 . 2 . . . . Core 14 | . 1 . 2 2 . 2 . . . 1 . 1 . . 3 . 1 1 . Reactor 7 | . . . . . . . . . . . . . . . 1 1 . 3 2 Propulsion 61 | 2 1 8 7 6 . 1 . . . 2 . 3 2 . 4 1 . 14 10 Treads 14 | 2 . 6 6 . . . . . . . . . . . . . . . . Leg 1 | . . . . . . . . . . . . . . . . . . . 1 Wheel 2 | . 1 1 . . . . . . . . . . . . . . . . . Hover 21 | . . . . . . . . . . . . . . . . . . 12 9 Flight 23 | . . 1 1 6 . 1 . . . 2 . 3 2 . 4 1 . 2 . Utility 109 | 3 4 4 10 10 2 3 8 . 8 4 . 3 4 2 7 8 6 11 12 Device 49 | 2 3 1 1 4 1 2 3 . 3 2 . . 1 2 3 7 2 6 6 Storage 6 | 1 1 . 1 1 . 1 . . . . . . . . . . . . 1 Processor 18 | . . . 1 1 1 . 1 . 1 2 . 1 1 . . . 4 3 2 Hackware 22 | . . . 1 4 . . 3 . 3 . . 2 2 . 4 1 . 1 1 Protection 14 | . . 3 6 . . . 1 . 1 . . . . . . . . 1 2 Artifact . | . . . . . . . . . . . . . . . . . . . . Weapon 45 | 2 2 14 8 . . 1 . . 4 2 1 1 2 . 2 2 2 1 1 Energy Gun 3 | . . . 3 . . . . . . . . . . . . . . . . Energy Cannon 7 | . . 1 . . . . . . 1 . 1 . 1 . . 2 1 . . Ballistic Gun 17 | 2 1 10 3 . . . . . . . . . . . . . . . 1 Ballistic Cannon 2 | . . . . . . . . . . . . 1 . . 1 . . . . Launcher 5 | . . 1 1 . . . . . 2 . . . . . 1 . . . . Special Weapon 1 | . 1 . . . . . . . . . . . . . . . . . . Impact Weapon . | . . . . . . . . . . . . . . . . . . . . Slashing Weapon 5 | . . 1 . . . . . . 1 1 . . . . . . 1 1 . Piercing Weapon 2 | . . . 1 . . 1 . . . . . . . . . . . . . Special Melee Weapon 3 | . . 1 . . . . . . . 1 . . 1 . . . . . . Unidentified Prototypes 25 | . . 4 3 . . . . . . 2 1 . 1 2 3 1 . 1 7 Corrupted Parts 2 | . . . . . . . . . . . . . . . 2 . . . . System Corruption 18 | . . . . . . . . . . . . . . . 18 . . . . Parts Lost 81 | . 2 3 16 2 . . 1 . . 2 . 3 4 . 12 1 1 9 25 Power 15 | . 1 2 . 1 . . . . . . . 1 2 . 4 . . 1 3 Propulsion 28 | . 1 . 6 . . . . . . 1 . . . . 2 . . 5 13 Utility 28 | . . 1 6 1 . . . . . 1 . 1 2 . 4 1 1 3 7 Weapon 10 | . . . 4 . . . 1 . . . . 1 . . 2 . . . 2 Highest Loss Streak 12 | . 1 1 4 1 . . 1 . . 1 . 1 2 . 5 1 1 3 12 To Critical Strikes 3 | . . . 1 . . . . . . . . 1 . . 1 . . . . Average Backups 10 | 2 11 14 17 10 9 9 8 9 8 8 9 7 7 8 8 8 8 4 7 Power . | . . . . . . . 1 1 . . 1 . . . . . . . . Propulsion 1 | . . 2 4 . 2 1 . . . . . . . 1 . 1 . . . Utility 5 | 1 6 6 8 5 5 5 6 7 5 6 7 4 4 4 5 5 6 3 4 Weapon 2 | 1 5 5 3 4 2 1 1 1 1 . 1 1 2 2 1 1 1 1 1 Tool/Special . | . . . . . . . . . . . . . . . . . . . . Unused Backups 30 | . 1 9 4 3 . . 1 . 1 1 . 2 . 1 1 . . . 6 Power 1 | . . . . . . . . . . . . 1 . . . . . . . Propulsion 8 | . . 4 1 . . . . . . . . . . 1 . . . . 2 Utility 12 | . . 2 1 1 . . . . 1 1 . 1 . . 1 . . . 4 Weapon 7 | . 1 2 2 2 . . . . . . . . . . . . . . . Tool/Special 2 | . . 1 . . . . 1 . . . . . . . . . . . . Average Slot Usage (%) 94 | . 89 96 90 97 100 99 93 93 92 95 100 95 93 94 90 93 94 97 92 Engine 2 | . 5 9 5 . . . . . . . . . . 5 4 1 . . . Core 4 | . 5 . 3 6 7 6 6 6 5 5 5 5 8 5 5 4 4 1 . Reactor 1 | . . . . . . . . . . . . . . . . 2 4 6 7 Treads 9 | . 22 26 30 . . . . . . . . . . . . . . . . Hover 2 | . . . . . . . . . . . . . . . . . . 25 28 Flight 17 | . . . . 29 30 29 32 33 32 29 29 28 31 31 30 32 30 6 . Device 8 | . 10 10 2 6 6 8 5 6 9 8 5 5 4 5 6 17 18 15 12 Storage 6 | . 14 11 9 7 7 7 6 6 4 4 5 4 5 5 5 4 4 . 2 Processor 5 | . . . 2 6 7 7 6 6 5 4 11 5 6 10 5 4 9 16 19 Hackware 16 | . . . 8 22 23 21 25 26 21 29 29 34 27 26 28 19 17 13 8 Protection 2 | . . 9 9 . . . . . 2 1 . . 1 . . . . . 3 Ballistic Gun 6 | . 26 20 10 . . . . . . . . . . . . . . . . Slashing Weapon 1 | . . . . . . . . . . 4 5 3 1 . . . 1 6 4 Piercing Weapon 1 | . . . . 6 7 7 6 6 3 . . . . . . . . . . Special Melee Weapon 1 | . . . . 6 7 7 1 . . 3 5 1 . . . . . . . Peak Build Rating 197 | 8 11 25 29 52 53 55 66 67 79 92 92 107 122 120 132 154 174 197 186 Average Rating 76 | 6 9 16 25 44 51 51 61 66 68 85 87 97 114 115 114 142 158 186 172 On Entrance 77 | . 8 11 24 24 52 53 52 66 67 76 87 87 102 115 115 116 138 174 175 Avg Prop Armor Cover (%) 5 | . 10 4 . 5 . . . . . . . . . . 7 2 2 6 5 Naked Turns . | . . . . . . . . . . . . . . . . . . . . Heaviest Build 71 | 13 30 38 60 21 20 23 21 18 28 24 20 31 34 29 37 48 50 60 71 Greatest Support 109 | 40 40 66 84 28 20 28 35 25 35 37 26 43 50 36 58 62 68 102 109 Greatest Overweight (x) 8 | . 2 1 1 4 . 6 . . 6 . . 8 . . 1 . 1 1 1 Average Overweight (x) . | . . . . . . . . . . . . . . . . . . . . Largest Inventory Capacity 20 | 8 15 15 20 20 10 10 10 10 10 10 10 10 10 10 10 10 10 10 10 Average Capacity 11 | 7 13 15 18 10 10 10 10 10 9 9 10 9 10 10 10 10 10 5 8 Most Carried 20 | 6 15 15 20 20 10 10 10 10 10 10 10 10 10 10 10 10 10 10 10 Average Carried 10 | 2 11 14 17 9 9 9 8 9 8 9 10 9 9 9 9 9 9 5 7 Final Capacity 20 | 8 15 15 20 10 10 10 10 10 10 10 10 10 10 10 10 10 10 5 10 Final Carried 20 | 6 15 15 20 10 10 10 10 10 10 10 10 9 10 10 10 10 10 5 10 Class Distribution -------------------- 21% | Wizard-Sprinter 18% | Mutant 16% | Hacker-Sprinter 15% | Scavenger-Mutant 8% | Hacker-Mutant 3% | Hacker-Gladiator 3% | Wizard-Mutant 3% | Machinist-Sprinter Dominant Class ---------------- Mutant | -10/Materials Mutant | -9/Materials Scavenger-Mutant | -8/Materials Hacker-Sprinter | -7/Factory Hacker-Sprinter | -7/Waste Hacker-Sprinter | -7/Factory Hacker-Sprinter | -6/Factory Hacker-Sprinter | -6/Waste Machinist-Sprinter | -6/Factory Wizard-Sprinter | -5/Factory Wizard-Scout | -5/Waste Wizard-Sprinter | -5/Factory Wizard-Sprinter | -4/Factory Wizard-Sprinter | -4/Waste Wizard-Sprinter | -4/Factory Hacker-Mutant | -3/Research Hacker-Ninja | -2/Research Hacker-Gladiator | -1/Access Hacker-Mutant | -1/Command Resources | -11 -10 -9 -8 -7 -7 -7 -6 -6 -6 -5 -5 -5 -4 -4 -4 -3 -2 -1 -1 ----------- Run | Yrd Mat Mat Mat Fac Was Fac Fac Was Fac Fac Was Fac Fac Was Fac Res Res Acc Com Matter Collected 14537 | 352 459 1652 1116 430 . 288 380 . 818 251 89 1027 915 . 874 1810 612 877 2587 Remotely 31 | 31 . . . . . . . . . . . . . . . . . . . Salvage Created 20048 | 247 565 2397 2051 409 . 127 402 . 1365 284 . 1235 1036 . 638 3420 695 1801 3376 Parts 911 | 23 34 144 110 23 . 15 21 . 53 16 . 46 32 . 26 120 25 86 137 Haulers Intercepted 11 | . . 5 4 . . . . . 1 . . . . . . . . 1 . Recyclers Shooed 20 | . . 4 . 1 . . 1 . . . . 4 3 . . 4 . 2 1 Parts Field Recycled 4 | . . . . . . . . . . . . . . . . . 4 . . Retrieved Matter 14 | . . . . . . . . . . . . . . . . . 14 . . Parts Self-Destructed . | . . . . . . . . . . . . . . . . . . . . Prevented . | . . . . . . . . . . . . . . . . . . . . Parts Restored 2 | . . . . . . 2 . . . . . . . . . . . . . Broken 2 | . . . . . . 2 . . . . . . . . . . . . . Kills | -11 -10 -9 -8 -7 -7 -7 -6 -6 -6 -5 -5 -5 -4 -4 -4 -3 -2 -1 -1 ------- Run | Yrd Mat Mat Mat Fac Was Fac Fac Was Fac Fac Was Fac Fac Was Fac Res Res Acc Com Combat Hostiles Destroyed 236 | . 15 38 38 1 . 4 . . 10 4 . 13 8 . 6 40 . 18 41 Melee 42 | . . . 1 1 . . . . 4 3 . 5 . . . . . 13 15 Guns 84 | . 15 35 33 . . . . . . . . . . . . . . . 1 Cannons 12 | . . . . . . . . . . . . 4 3 . 4 . . 1 . AOE 54 | . . 3 4 . . 4 . . 3 1 . 2 2 . 2 22 . 3 8 Classes Destroyed 22 | 3 5 3 2 2 . . . . 1 1 . 2 . . . . . . 3 Worker 17 | 1 1 5 2 . . . 1 . . . . 2 1 . 3 . . . 1 Builder 13 | . . . . 2 . . 1 . 2 . . 1 1 . . 2 1 3 . Tunneler 13 | 7 . 1 . . . 1 1 . 1 . . . . . . . 1 1 . Hauler 11 | . . 5 4 . . . . . 1 . . . . . . . . 1 . Recycler 40 | 1 . 7 1 4 . . 2 . 4 . . 4 3 . 3 1 5 3 2 Mechanic 1 | . 1 . . . . . . . . . . . . . . . . . . Operator 12 | . 1 4 1 . . 1 . . 1 1 . . 1 . . . . . 2 Turret 2 | . . . . . . . . . . . . 2 . . . . . . . Watcher 26 | . 1 4 1 1 . 1 1 . 3 1 . 3 1 . . 4 1 3 1 Swarmer 52 | . 5 7 7 . . 4 . . 3 . . 4 . . 2 3 . 7 10 Cutter 2 | . . . . . . . . . . 2 . . . . . . . . . Saboteur 2 | . . . . . . . . . . . . 1 . . . . . . 1 Grunt 97 | . 10 22 20 . . . . . 3 . . . 2 . . 25 . 2 13 Brawler 6 | . . 1 1 . . . . . . . . . . . . 2 . . 2 Duelist 5 | . . . 1 . . . . . . . . . . . . 3 . 1 . Sentry 30 | . . 8 8 . . . . . . 2 . 2 4 . . 1 . 1 4 Specialist 1 | . . . . . . . . . . . . . . . . . . . 1 Hunter 14 | . . . 1 . . . . . . . . 2 . . . 6 . 1 4 Programmer 21 | . . . . 1 . . . . 2 . . 4 2 . 4 . . 6 2 Striker 1 | . . . . . . . . . 1 . . . . . . . . . . Executioner 1 | . . . . . . . . . . . . . . . . . . . 1 Alpha 7 1 | . . . . . . . . . . . . . . . . . . . 1 Guerrilla 1 | . . . . . . . . . . . . . . . . . . . 1 Wizard 1 | . . . . . . . . . . . . . . . . . . . 1 Best Kill Streak 12 | 4 5 6 8 2 . 4 2 . 5 2 . 4 4 . 4 12 2 10 8 Combat Bots Only 12 | . 5 6 8 1 . 4 . . 3 2 . 4 4 . 2 12 . 7 7 Max Kills in Single Turn 4 | 2 2 4 2 1 . 4 1 . 2 1 . 1 2 . 4 3 1 1 2 Gunslinging 1 | . 1 . . . . . . . . . . . . . . . . . . Exploded 4 | . . 3 2 . . 4 . . 2 1 . 1 1 . 2 3 . 1 2 Melee 1 | . . . 1 1 . . . . 1 1 . 1 . . . . . 1 1 Uniques/NPCs Destroyed 1 | . . . . . . . . . 1 . . . . . . . . . . CL-0N3 (-6/Factory) Combat | -11 -10 -9 -8 -7 -7 -7 -6 -6 -6 -5 -5 -5 -4 -4 -4 -3 -2 -1 -1 -------- Run | Yrd Mat Mat Mat Fac Was Fac Fac Was Fac Fac Was Fac Fac Was Fac Res Res Acc Com Hostile Shots Fired 1317 | . 71 120 181 63 . 12 29 . 55 24 . 51 31 . 140 71 47 138 284 Missed 501 | . 19 27 44 27 . 2 17 . 28 15 . 21 17 . 67 27 27 58 105 Hits 816 | . 52 93 137 36 . 10 12 . 27 9 . 30 14 . 73 44 20 80 179 Melee 18 | . . 5 8 . . . . . . 4 . . . . . . . . 1 Projectile 798 | . 52 88 129 36 . 10 12 . 27 5 . 30 14 . 73 44 20 80 178 AOE 2 | . . . . . . . . . . 1 . . . . . . . . 1 Critical Strikes 34 | . . 4 5 1 . . 1 . 1 1 . 2 3 . 3 . 1 4 8 Actively Blocked 11 | . . . . . . . . . . . . . . . . . . 3 8 Part Disruptions 3 | . . . . . . . . . . . . 1 . . 1 . . . 1 Damage Taken 14908 | . 583 1259 2154 445 . 192 75 . 321 215 . 578 536 . 1620 576 497 1822 4035 Core 3197 | . 145 242 198 207 . 70 17 . 93 143 . 201 142 . 210 97 96 360 976 Absorbed by Shields 250 | . . . . . . . . . . . . . . . 29 . . . 221 Redirected to Shielding 178 | . . . 2 . . . . . 18 10 . . 30 . 89 . . . 29 Regen/Repaired (Parts) 2061 | . 103 34 247 46 . 84 110 . 210 . 4 224 29 . 342 205 . 325 98 Core Remaining (%) 66 | 100 42 39 64 . . 60 . . 87 . . 65 . . 69 92 93 . 16 Volleys Fired 989 | 12 58 171 125 . . 1 . . 21 5 . 66 83 . 91 140 35 53 128 Largest 2 | 2 2 2 2 . . 1 . . 1 1 . 1 1 . 1 1 1 1 1 Hottest 120 | 40 120 100 90 . . 33 . . 85 50 . 60 105 . 105 113 120 120 120 Shots Fired 1334 | 24 113 332 240 . . 1 . . 21 5 . 66 81 . 91 140 35 57 128 Gun 699 | 24 108 324 235 . . . . . . . . . . . . . . . 8 Cannon 280 | . . . . . . . . . 1 . . 23 48 . 83 34 35 45 11 Launcher 343 | . . 1 5 . . 1 . . 20 5 . 43 33 . 8 106 . 12 109 Special 12 | . 5 7 . . . . . . . . . . . . . . . . . Kinetic 715 | 24 108 324 166 . . . . . . . . 23 33 . 29 . . . 8 Thermal 203 | . 5 7 . . . . . . 1 . . . 15 . 54 30 35 45 11 Explosive 7 | . . 1 5 . . 1 . . . . . . . . . . . . . Electromagnetic 409 | . . . 69 . . . . . 20 5 . 43 33 . 8 110 . 12 109 Robot Hit Streak 35 | 10 15 23 35 . . . . . 3 . . 7 5 . 6 6 8 12 12 Robot Miss Streak 7 | 1 3 7 4 . . . . . . . . 2 5 . 3 2 4 1 2 Penetration Max . | . . . . . . . . . . . . . . . . . . . . Secondary Targets 6 | . 2 1 3 . . . . . . . . . . . . . . . . Max Gunslinging Chain 1 | . 1 1 1 . . . . . . . . . . . . . . . . Shots Hit Robots 797 | 16 75 235 196 15 . 4 13 . 37 11 . 30 14 . 16 9 13 60 53 Core Hits 675 | 10 31 113 99 6 . 6 8 . 37 8 . 36 36 . 18 116 7 34 110 Critical Kills 2 | . . 1 . . . . . . . . . . . . 1 . . . . Critical Parts Destroyed 5 | . . 2 2 . . . . . . . . . . . . . . . 1 Critical Strikes 22 | . . 3 2 . . . 3 . 2 . . 2 3 . 1 . . 2 4 Meltdown 1 | . . . . . . . . . . . . . . . 1 . . . . Destroy 6 | . . 3 2 . . . . . . . . . . . . . . . 1 Blast 3 | . . . . . . . . . . . . . 3 . . . . . . Sever 7 | . . . . . . . . . . . . 2 . . . . . 2 3 Impale 5 | . . . . . . . 3 . 2 . . . . . . . . . . Melee Attacks 603 | . . 3 3 66 1 30 43 . 72 80 2 95 21 . . . 22 97 68 Impact . | . . . . . . . . . . . . . . . . . . . . Slashing 390 | . . 2 . . . . . . 8 77 2 94 20 . . . 22 97 68 Piercing 203 | . . . 1 65 1 29 43 . 64 . . . . . . . . . . Sneak Attacks 55 | . . 2 2 7 . 1 5 . 5 6 . 6 3 . . . 3 12 3 Combat Hostiles 5 | . . . . . . . . . 1 1 . 2 . . . . . 1 . Follow-up Attacks 11 | . . . . . . . . . . . . . . . . . . 6 5 Damage Inflicted 40508 | 228 992 3390 3606 734 . 380 547 . 2082 793 . 3756 2514 . 1452 6125 908 5335 7666 Guns 7534 | 228 992 3041 3000 . . . . . . . . . . . . . . . 273 Cannons 4341 | . . . . . . . . . . . . 1360 1279 . 865 38 479 320 . Explosions 15398 | . . 288 592 . . 171 . . 714 175 . 997 868 . 529 6087 . 803 4174 Melee 13162 | . . 60 . 734 . 209 547 . 1368 618 . 1399 367 . . . 429 4212 3219 Ramming 73 | . . 1 14 . . . . . . . . . . . 58 . . . . Kinetic 9797 | 228 992 3041 1994 . . . . . . . . 1360 1165 . 744 . . . 273 Thermal 3397 | . . . 298 . . . . . 40 . . . 185 . 263 1102 479 417 613 Explosive 830 | . . 288 294 . . 171 . . . 39 . . . . . 38 . . . Electromagnetic 13249 | . . . 1006 . . . . . 674 136 . 997 797 . 387 4985 . 706 3561 Impact . | . . . . . . . . . . . . . . . . . . . . Slashing 10542 | . . 60 . . . . . . 238 618 . 1399 367 . . . 429 4212 3219 Piercing 2620 | . . . . 734 . 209 547 . 1130 . . . . . . . . . . Highest Corruption 40 | . . 4 9 2 1 1 1 10 10 . . 1 9 9 40 . 1 12 16 Average Corruption 7 | . . 4 8 1 1 1 1 6 5 . . 1 4 9 18 . 1 10 13 Corruption Purged 13 | . . . . 2 . . . . 11 . . . . . . . . . . Corruption Blocked 17 | . . . . . 8 . . . . . . . . 9 . . . . . Effects 279 | . . 17 41 10 . 7 2 . 19 . . 2 18 2 65 . 2 39 55 Message Errors 69 | . . 4 13 3 . 1 2 . 7 . . 2 4 1 11 . 1 11 9 Matter Fused 55 | . . 4 4 4 . 2 . . 5 . . . 1 . 16 . . 8 11 Heat Flow Errors 33 | . . 2 8 . . 2 . . 1 . . . 3 . 7 . . 5 5 Energy Discharges 29 | . . 2 6 1 . 1 . . 1 . . . 1 1 9 . . 1 6 Parts Rejected 4 | . . . . . . . . . . . . . . . 1 . . . 3 Parts Fused 3 | . . . . . . . . . 1 . . . 1 . . . . . 1 Data Loss (minor) 30 | . . 3 5 . . . . . 2 . . . 5 . 6 . . 2 7 Data Loss (major) 9 | . . . 4 1 . . . . . . . . . . 2 . 1 1 . Misfires 10 | . . 2 . . . . . . . . . . . . 1 . . 5 2 Alerts 13 | . . . 1 1 . 1 . . 1 . . . 1 . 2 . . 4 2 Misdirections 18 | . . . . . . . . . 1 . . . . . 9 . . 1 7 Weapon Failures 6 | . . . . . . . . . . . . . 2 . 1 . . 1 2 Overload Shots . | . . . . . . . . . . . . . . . . . . . . Overflow Damage 2933 | . . . 56 154 . 59 66 . 92 173 . 510 145 . 66 76 181 921 434 Projectiles 303 | . . . . . . . . . . . . 117 58 . 66 . 46 16 . Explosions 174 | . . . 56 . . . . . . . . 25 . . . 76 . . 17 Melee 2456 | . . . . 154 . 59 66 . 92 173 . 368 87 . . . 135 905 417 Knockbacks 16 | . . . . . . . . . . . . 6 . . 10 . . . . Impact . | . . . . . . . . . . . . . . . . . . . . Kinetic 14 | . . . . . . . . . . . . 6 . . 8 . . . . Secondary 2 | . . . . . . . . . . . . . . . 2 . . . . Self-Inflicted Damage 201 | . . 38 82 . . . . . 7 . . . . . 28 11 . . 35 Shots 9 | . . 1 2 . . . . . 1 . . . . . . 2 . . 3 Rammed 7 | . . . 5 . . . . . . . . . . . 2 . . . . Targets Rammed 9 | . . 1 6 . . . . . . . . . . . 2 . . . . Kicked . | . . . . . . . . . . . . . . . . . . . . Crushed 2 | . . 1 1 . . . . . . . . . . . . . . . . Highest Temperature 536 | . 30 260 485 102 . 139 282 . 181 66 . 133 280 6 418 363 385 420 536 Average Temperature 98 | . 10 17 121 37 . 42 125 . 46 25 . 41 83 6 97 116 108 114 88 Received Heat Transfer 2392 | . 243 393 891 48 . 18 39 . 51 . . 54 58 . 198 69 . 99 231 Effects 40 | . . . 3 . . . . . . . . . 3 . 3 8 7 10 6 Shutdowns 4 | . . . 1 . . . . . . . . . . . . . . 2 1 Energy Bleed 6 | . . . . . . . . . . . . . 1 . 1 1 . 2 1 Interference 25 | . . . . . . . . . . . . . 2 . 1 7 7 5 3 Matter Decay 1 | . . . . . . . . . . . . . . . 1 . . . . Short Circuit 1 | . . . 1 . . . . . . . . . . . . . . . . Damage (minor) 2 | . . . 1 . . . . . . . . . . . . . . 1 . Damage (core) 1 | . . . . . . . . . . . . . . . . . . . 1 Siege Activations . | . . . . . . . . . . . . . . . . . . . . Martial Activations . | . . . . . . . . . . . . . . . . . . . . Shielding Activations . | . . . . . . . . . . . . . . . . . . . . Robots Disrupted 3 | . . . 1 . . . . . . 1 . 1 . . . . . . . Combat Hostiles 3 | . . . 1 . . . . . . 1 . 1 . . . . . . . Robots Corrupted 49 | . . . . . . . . . 3 . . 3 3 . . 20 . 2 18 Combat Hostiles 44 | . . . . . . . . . 3 . . 2 3 . . 18 . 1 17 Parts Fried 70 | . . . 6 . . . . . . . . 3 4 . . 36 . 2 19 Impact Corruptions . | . . . . . . . . . . . . . . . . . . . . Robots Melted 1 | . . . . . . . . . . . . . . . 1 . . . . Combat Hostiles . | . . . . . . . . . . . . . . . . . . . . Parts Melted 5 | . . . . . . . . . . . . . 2 . 3 . . . . Heat Transferred 2738 | . . . 300 . . . . . 50 . . . 161 . 361 700 407 359 400 Parts Sabotaged . | . . . . . . . . . . . . . . . . . . . . Parts Stolen . | . . . . . . . . . . . . . . . . . . . . Parts Stripped . | . . . . . . . . . . . . . . . . . . . . Power Chain Reactions 31 | . . . 6 . . . . . 1 . . 1 3 . 2 8 . 3 7 Alert | -11 -10 -9 -8 -7 -7 -7 -6 -6 -6 -5 -5 -5 -4 -4 -4 -3 -2 -1 -1 ------- Run | Yrd Mat Mat Mat Fac Was Fac Fac Was Fac Fac Was Fac Fac Was Fac Res Res Acc Com Maximum Alert Level 5 | . . 2 2 1 . 1 . . 1 1 . 3 2 . 2 4 3 3 5 Low Security (%) 49 | 100 100 38 . 96 100 71 100 100 89 85 100 28 48 100 42 12 85 16 . Level 1 23 | . . 33 27 3 . 28 . . 10 14 . 52 46 . 32 4 11 45 . Level 2 18 | . . 28 72 . . . . . . . . 9 4 . 24 19 . 33 15 Level 3 5 | . . . . . . . . . . . . 10 . . . 31 3 4 40 Level 4 2 | . . . . . . . . . . . . . . . . 30 . . 18 Level 5 . | . . . . . . . . . . . . . . . . . . . 5 High Security 1 | . . . . . . . . . . . . . . . . . . . 19 Max Security . | . . . . . . . . . . . . . . . . . . . . Peak Influence 2263 | 20 171 661 585 210 54 225 145 50 258 269 97 803 418 123 558 1333 723 828 2263 Initial 723 | . . . 277 210 53 9 38 50 28 124 59 53 182 123 79 162 723 94 524 Average 299 | 2 47 303 426 85 33 94 20 45 69 133 68 296 197 118 274 801 91 353 1183 Influence Increases 17038 | 45 479 1286 1306 538 1 483 337 . 838 622 68 2233 1118 . 1676 1929 447 1302 2330 Destroy 0b10 Robot/C 4860 | . 300 760 760 20 . 80 . . 160 80 . 480 160 . 120 800 . 360 780 Destroy 0b10 Robot/NC 665 | 45 20 130 45 35 . 15 30 . 60 5 . 55 35 . 30 35 40 55 30 Destroy Leader 1094 | . 62 218 190 12 . 12 2 . 48 22 . 106 62 . 30 118 2 68 142 Allied During Kill 143 | . . . . . . . . . . . . 143 . . . . . . . Trap Triggered on 0b10 180 | . . . 20 20 . . . . 50 40 . . . . 10 . 40 . . Successful Hack 1083 | . 47 14 31 65 . 122 69 . 64 11 . 139 22 . 106 147 56 108 82 Select Force Hacks 260 | . . 60 60 60 . . . . 30 . . . 50 . . . . . . Disable Machine 465 | . 15 15 30 . . . . . 45 30 . 105 15 . 30 90 . 30 60 Destroy Structure 1718 | . 5 14 65 41 1 29 26 . 36 164 68 320 84 . 150 184 114 216 201 Partial Spotted 1200 | . . . . 90 . 75 . . 60 90 . 180 165 . 300 30 90 45 75 Lose Combat Pursuer 5370 | . 30 75 105 195 . 150 210 . 285 180 . 705 525 . 900 525 105 420 960 Influence Decreases 14820 | 45 479 628 1501 847 141 418 271 105 623 707 161 1937 1139 239 1480 951 1576 640 932 Entered New Map 2679 | . . . 381 253 101 5 41 95 12 131 111 24 191 229 34 147 564 64 296 Time Decay 6642 | 45 459 598 660 425 40 283 186 10 393 386 50 603 418 10 506 464 234 486 386 Search Patrol Dispatched 800 | . . . . . . 100 . . 100 . . 200 200 . 200 . . . . Lost Part 810 | . 20 30 160 20 . . 10 . . 20 . 30 40 . 120 10 10 90 250 Lost Ally 240 | . . . . . . 30 . . . 20 . 130 . . 20 30 10 . . Purge Threat 3649 | . . . 300 149 . . 34 . 118 150 . 950 290 . 600 300 758 . . Squads Dispatched 163 | . 4 7 5 12 . 5 6 . 12 7 . 20 10 . 16 13 8 16 22 Investigation 65 | . 3 2 4 9 . 3 5 . 6 3 . 6 4 . 6 5 3 6 . Extermination 38 | . . . . 3 . 2 1 . 4 2 . 5 3 . 5 3 3 5 2 Reinforcement 39 | . 1 5 1 . . . . . 2 2 . 6 3 . 3 2 2 4 8 Assault 18 | . . . . . . . . . . . . 2 . . 2 1 . 1 12 Garrison 3 | . . . . . . . . . . . . 1 . . . 2 . . . Intercept . | . . . . . . . . . . . . . . . . . . . . Searches Triggered 8 | . . . . . . 1 . . 1 . . 2 2 . 2 . . . . Unchained Authorized 7 | . . . . . . . 1 . 1 1 . 1 1 . . 1 1 . . Construction Impeded 9 | . . 1 . . . . . . 1 . . 2 2 . 1 1 . 1 . Haulers Reinforced 1 | . . . . . . . . . . . . 1 . . . . . . . Active Scanning Responses . | . . . . . . . . . . . . . . . . . . . . Cargo Convoy Interrupts 3 | . . . . . . . . . . 1 . 1 . . 1 . . . . Stealth | -11 -10 -9 -8 -7 -7 -7 -6 -6 -6 -5 -5 -5 -4 -4 -4 -3 -2 -1 -1 --------- Run | Yrd Mat Mat Mat Fac Was Fac Fac Was Fac Fac Was Fac Fac Was Fac Res Res Acc Com Distress Signals 59 | . 1 2 1 . . 4 . . 3 2 . 8 4 . 10 6 1 2 15 Communications Jammed 133 | . . . . . . . 2 . 6 . . 11 7 . 20 2 23 40 22 Distress Signals 132 | . . . . . . . 2 . 6 . . 11 7 . 20 2 23 39 22 Times Spotted 762 | . 29 57 58 26 6 30 20 6 35 33 6 52 35 6 94 63 49 57 100 Peak Tracking Total 20 | . 6 7 9 6 6 8 8 6 7 12 6 13 7 6 16 8 20 8 20 Tactical Retreats 182 | . 2 3 3 11 . 8 6 . 11 10 1 30 19 . 22 19 8 12 17 ECM-based Alert Blocks 67 | . . . . 8 . 8 1 . 9 5 . . . . . 9 20 7 . Traps | -11 -10 -9 -8 -7 -7 -7 -6 -6 -6 -5 -5 -5 -4 -4 -4 -3 -2 -1 -1 ------- Run | Yrd Mat Mat Mat Fac Was Fac Fac Was Fac Fac Was Fac Fac Was Fac Res Res Acc Com Traps Triggered 45 | . 3 1 7 4 . 1 1 . . 1 . 6 5 . 4 3 1 1 7 Indirectly 5 | . . . . . . . . . . . . 3 . . 1 1 . . . Trap Hack Attempts 64 | . . 27 16 . . 21 . . . . . . . . . . . . . Triggered . | . . . . . . . . . . . . . . . . . . . . Disarmed 13 | . . 2 . . . . . . 6 . . 5 . . . . . . . Reprogrammed 37 | . . 3 4 . . 5 . . 12 . . . 6 . 6 1 . . . Reused 20 | . . . 2 2 . . 2 . 5 4 . . . . 1 . 4 . . Traps Extracted 25 | . . 3 4 . . 5 . . 6 . . . 6 . 1 . . . . Installed 17 | . . . 2 2 . . 2 . 2 4 . . . . 1 . 4 . . Triggered 18 | . . . 2 2 . . . . 5 4 . . . . 1 . 4 . . Most Traps Carried 8 | . . 3 4 4 2 5 5 3 6 6 2 2 8 8 8 8 8 3 . Machines | -11 -10 -9 -8 -7 -7 -7 -6 -6 -6 -5 -5 -5 -4 -4 -4 -3 -2 -1 -1 ---------- Run | Yrd Mat Mat Mat Fac Was Fac Fac Was Fac Fac Was Fac Fac Was Fac Res Res Acc Com Machines Disabled 32 | . 1 2 2 . . . . . 3 2 . 7 1 . 2 6 . 2 4 Max in Single Turn 2 | . 1 1 1 . . . . . 2 1 . 1 1 . 1 1 . 1 1 Garrison Access 22 | . . . 1 1 . 4 2 . 2 1 . 3 2 . 3 1 2 . . Machines Repaired . | . . . . . . . . . . . . . . . . . . . . Machines Dismantled . | . . . . . . . . . . . . . . . . . . . . Machines Sabotaged . | . . . . . . . . . . . . . . . . . . . . Overloaded Fab Kills 2 | . . . . . . . . . . . . . 2 . . . . . . Hacking | -11 -10 -9 -8 -7 -7 -7 -6 -6 -6 -5 -5 -5 -4 -4 -4 -3 -2 -1 -1 --------- Run | Yrd Mat Mat Mat Fac Was Fac Fac Was Fac Fac Was Fac Fac Was Fac Res Res Acc Com Machines Accessed 314 | . 9 10 14 30 . 22 29 . 35 21 . 29 20 . 27 23 16 18 11 Terminals 179 | . 8 7 10 17 . 12 16 . 18 13 . 13 8 . 14 12 12 11 8 Fabricators 37 | . . . . 5 . 2 3 . 5 3 . 4 3 . 5 2 2 3 . Repair Stations 31 | . 1 1 1 3 . 2 2 . 4 . . 3 3 . 3 3 . 3 2 Recycling Units 27 | . . . . 2 . 1 2 . 3 4 . 6 3 . 3 2 . . 1 Scanalyzers 18 | . . 2 2 2 . 1 3 . 2 . . 1 1 . . 3 . 1 . Garrison Access 22 | . . . 1 1 . 4 3 . 3 1 . 2 2 . 2 1 2 . . Total Hacks 1215 | . 34 27 42 76 . 78 85 . 103 79 . 154 108 . 186 98 76 43 26 Successful 844 | . 19 18 30 52 . 53 66 . 91 65 . 128 71 . 113 55 48 24 11 Failed 363 | . 15 9 11 23 . 25 19 . 11 13 . 25 37 . 73 42 27 18 15 Catastrophic 34 | . 1 1 . 3 . 2 3 . . . . 1 3 . 9 5 2 1 3 Database Lockouts 8 | . . . 1 1 . . . . 1 1 . 1 . . . 1 1 1 . Manual 656 | . 31 20 27 43 . 40 51 . 47 53 . 86 52 . 114 38 37 8 9 Terminals 772 | . 31 21 33 40 . 56 49 . 56 56 . 90 61 . 120 50 67 24 18 Fabricators 148 | . . . . 15 . 7 10 . 15 12 . 18 11 . 33 9 7 11 . Repair Stations 98 | . 3 3 4 9 . 6 5 . 8 . . 11 7 . 16 15 . 6 5 Recycling Units 109 | . . . . 6 . 2 6 . 8 10 . 28 22 . 15 9 . . 3 Scanalyzers 58 | . . 3 4 5 . 2 8 . 11 . . 5 4 . . 14 . 2 . Garrison Access 30 | . . . 1 1 . 5 7 . 5 1 . 2 3 . 2 1 2 . . Terminal Hacks 315 | . 3 4 12 15 . 22 20 . 30 27 . 51 25 . 49 16 25 11 5 Record 1 | . . . . . . . . . . . . . . . . 1 . . . Part Schematic 43 | . . 1 . 2 . 4 7 . 3 4 . 12 4 . 4 . 1 1 . Robot Schematic 3 | . 1 . . . . 2 . . . . . . . . . . . . . Robot Analysis 7 | . 2 . 1 . . 2 . . 1 . . . . . . . 1 . . Prototype ID Bank 30 | . . 1 . 2 . 2 3 . 4 3 . 2 . . 13 . . . . Open Door 4 | . . . . . . . . . . . . . . . . . . 4 . Level Access Points 8 | . . . . . . 1 1 . . . . 1 1 . 1 1 1 1 . Branch Access Points 1 | . . . . . . . . . . . . . . . . . . 1 . Emergency Access Points 2 | . . . . . . . . . . . . 1 . . . . . . 1 Machine Index 6 | . . . . . . . 1 . . 1 . . 1 . 1 1 1 . . Terminal Index 9 | . . . . 1 . 1 1 . 1 1 . 1 1 . . 1 1 . . Fabricator Index 5 | . . . . 1 . 1 . . . . . 1 . . . . 1 1 . Repair Station Index 4 | . . . . 1 . 1 . . . . . . 1 . . . . 1 . Scanalyzer Index 2 | . . . . . . 1 . . . . . . . . 1 . . . . Garrison Index 2 | . . . . . . . . . 1 . . 1 . . . . . . . Alert Level 17 | . . . 1 . . . 1 . 1 1 . 3 2 . 5 1 2 . . Unreport Threat 32 | . . . 2 1 . . 2 . 3 1 . 7 4 . 4 2 6 . . Locate Traps 28 | . . 2 2 3 . . 1 . 2 7 . 3 1 . 3 1 2 . 1 Disarm Traps 2 | . . . . . . . . . 1 . . 1 . . . . . . . Reprogram Traps 5 | . . . . . . . . . 2 . . . 1 . 1 1 . . . Dispatch Records 5 | . . . . . . . . . 2 1 . . 1 . . . 1 . . Maintenance Status 5 | . . . . 1 . 1 . . . 1 . . 1 . . . 1 . . Security Status 2 | . . . . . . . . . . . . . . . 2 . . . . Surveillance Status 1 | . . . . . . . . . . . . . . . . . . . 1 Patrol Status 2 | . . . . . . 1 . . . . . . . . . . 1 . . Transport Status 2 | . . . . . . . . . . . . . . . 1 . 1 . . Investigation Status 5 | . . . . . . . . . . 1 . . 1 . 1 1 1 . . Extermination Status 5 | . . . . . . 1 . . 1 . . 1 . . 1 1 . . . Reinforcement Status 3 | . . . 1 . . . . . . . . 1 . . 1 . . . . Recall Investigation 16 | . . . 1 1 . 1 1 . 3 1 . 2 1 . 3 . 2 . . Recall Extermination 15 | . . . . . . 2 1 . 1 1 . 3 1 . 3 3 . . . Recall Reinforcements 9 | . . . . . . . . . . . . 4 3 . 1 . . 1 . Recall Assault 2 | . . . . . . . . . . . . 2 . . . . . . . Hauler Manifests 7 | . . . 1 1 . . . . 1 1 . 2 . . . . 1 . . Registered Components 4 | . . . 1 . . . . . . 1 . 1 . . . 1 . . . Registered Prototypes 5 | . . . 1 1 . . . . 1 1 . . . . . . . 1 . Zone Layout 14 | . . . 1 . . 1 1 . 2 1 . 2 1 . 3 1 1 . . Disengage Seal 2 | . . . . . . . . . . . . . . . . . . . 2 Fabricator Hacks 73 | . . . . 10 . 4 6 . 11 6 . 8 4 . 11 5 4 4 . Network Status 3 | . . . . . . . . . 1 . . . . . 1 1 . . . Load Schematic 35 | . . . . 5 . 2 3 . 5 3 . 4 2 . 5 2 2 2 . Build 35 | . . . . 5 . 2 3 . 5 3 . 4 2 . 5 2 2 2 . Repair Station Hacks 76 | . 3 2 4 4 . 4 4 . 8 . . 10 6 . 14 10 . 4 3 Scan Component 37 | . 1 1 2 2 . 2 2 . 4 . . 5 2 . 6 6 . 2 2 Repair 34 | . 1 1 2 2 . 2 2 . 4 . . 5 2 . 6 4 . 2 1 Refit 5 | . 1 . . . . . . . . . . . 2 . 2 . . . . Recycling Unit Hacks 29 | . . . . 2 . . . . 3 . . 13 3 . 8 . . . . Recycle Component 2 | . . . . . . . . . . . . . . . 2 . . . . Process 8 | . . . . . . . . . . . . 5 1 . 2 . . . . Report Inventory 4 | . . . . 1 . . . . . . . 1 . . 2 . . . . Retrieve Matter 9 | . . . . 1 . . . . 1 . . 4 1 . 2 . . . . Retrieve Components 6 | . . . . . . . . . 2 . . 3 1 . . . . . . Scanalyzer 44 | . . 1 2 2 . 2 8 . 10 . . 5 4 . . 9 . 1 . Insert Component 15 | . . . . 1 . . 3 . 4 . . 2 1 . . 4 . . . Analyze 18 | . . . . 1 . . 3 . 6 . . 3 2 . . 3 . . . Retrieve Study 11 | . . 1 2 . . 2 2 . . . . . 1 . . 2 . 1 . Garrison Access Hacks 20 | . . . 1 1 . 4 2 . 2 1 . 2 2 . 2 1 2 . . Seal Access 20 | . . . 1 1 . 4 2 . 2 1 . 2 2 . 2 1 2 . . Unauthorized Hacks 286 | . 13 11 11 18 . 17 26 . 27 31 . 39 26 . 29 14 17 4 3 Terminals 170 | . 13 8 9 8 . 13 12 . 15 17 . 16 14 . 19 9 16 1 . Track 17 | . . 1 . . . 1 2 . 1 3 . 4 1 . 1 . 3 . . Assimilate 18 | . . . . . . 3 2 . 2 3 . 1 1 . 2 3 1 . . Botnet 53 | . 4 2 2 5 . 4 3 . 5 5 . 4 5 . 6 3 4 1 . Disrupt 14 | . . . . 3 . 2 . . 1 . . 2 . . 3 1 2 . . Operators 10 | . 1 1 . . . . 1 . 1 1 . 1 2 . 1 . 1 . . Skim 58 | . 8 4 7 . . 3 4 . 5 5 . 4 5 . 6 2 5 . . Fabricators 42 | . . . . 4 . 2 4 . 3 6 . 8 5 . 7 1 1 1 . Report 5 | . . . . . . . . . . 2 . 1 1 . 1 . . . . Prioritize 28 | . . . . 4 . 2 3 . 2 3 . 4 2 . 5 1 1 1 . Haulers 8 | . . . . . . . 1 . 1 1 . 3 1 . 1 . . . . Overload 1 | . . . . . . . . . . . . . 1 . . . . . . Repair Stations 7 | . . 1 . 2 . . 1 . . . . . . . . 1 . 2 . Mechanics 5 | . . 1 . 2 . . 1 . . . . . . . . 1 . . . Patch 2 | . . . . . . . . . . . . . . . . . . 2 . Recycling Units 54 | . . . . 2 . 2 6 . 5 8 . 15 7 . 3 3 . . 3 Monitor 4 | . . . . . . . 1 . . . . 2 1 . . . . . . Reject 20 | . . . . . . 1 2 . 2 4 . 6 2 . 1 1 . . 1 Recyclers 5 | . . . . . . . 1 . . . . 1 1 . 1 . . . 1 Mask 25 | . . . . 2 . 1 2 . 3 4 . 6 3 . 1 2 . . 1 Scanalyzers 7 | . . 2 2 2 . . . . 1 . . . . . . . . . . Extract 7 | . . 2 2 2 . . . . 1 . . . . . . . . . . Garrison Access 6 | . . . . . . . 3 . 3 . . . . . . . . . . Broadcast 2 | . . . . . . . 1 . 1 . . . . . . . . . . Redirect 2 | . . . . . . . 1 . 1 . . . . . . . . . . Watchers 2 | . . . . . . . 1 . 1 . . . . . . . . . . Data Cores Recovered 3 | . . . . . . . . . 1 . . . 1 . . . . . 1 Used 1 | . . . . . . . . . 1 . . . . . . . . . . Hacking Detections 257 | . 9 6 12 26 . 18 26 . 28 15 . 22 11 . 22 21 13 17 11 Full Trace Events 47 | . 1 . . 6 . 3 5 . 5 3 . 4 3 . 6 4 3 4 . Feedback Events 2 | . . . . . . . 1 . . . . . 1 . . . . . . Corruption 2 | . . . . . . . 1 . . . . . 1 . . . . . . Feedback Blocked 3 | . . . . . . . . . . . . . 1 . . 2 . . . Robot Schematics Acquired 54 | . 1 . . . . 2 . . 51 . . . . . . . . . . Robots Built . | . . . . . . . . . . . . . . . . . . . . Authchips . | . . . . . . . . . . . . . . . . . . . . Time . | . . . . . . . . . . . . . . . . . . . . Total Robot Build Rating . | . . . . . . . . . . . . . . . . . . . . Part Schematics Acquired 78 | . . 6 10 10 . 4 10 . 9 4 . 14 5 . 2 2 1 1 . Parts Built 38 | . . . . 5 . 2 2 . 6 5 . 4 2 . 5 2 2 3 . Authchips . | . . . . . . . . . . . . . . . . . . . . Time 1609 | . . . . 224 . 48 155 . 254 78 . 140 139 . 309 104 96 62 . Total Part Build Rating 221 | . . . . 21 . 9 12 . 32 30 . 24 14 . 35 13 15 16 . Part Studies Acquired 11 | . . 1 2 . . 2 2 . . . . . 1 . . 2 . 1 . Parts Repaired 33 | . 1 1 2 2 . 2 2 . 4 . . 5 2 . 5 4 . 2 1 Time 1392 | . 26 26 52 57 . 126 126 . 143 . . 159 106 . 261 229 . 48 33 Parts Recycled 2 | . . . . . . . . . . . . . . . 2 . . . . Recycled Matter 410 | . . . . . . . . . . . . 77 . . 333 . . . . Retrieved Matter 403 | . . . . . . . . . . . . 129 . . 274 . . . . Retrieved Components 16 | . . . . . . . . . 3 . . 13 . . . . . . . Parts Scanalyzed 13 | . . . . 1 . . 3 . 4 . . 2 1 . . 2 . . . Part Schematics Acquired 13 | . . . . 1 . . 3 . 4 . . 2 1 . . 2 . . . Parts Damaged 1 | . . . . . . . . . . . . . . . . 1 . . . Bothacking | -11 -10 -9 -8 -7 -7 -7 -6 -6 -6 -5 -5 -5 -4 -4 -4 -3 -2 -1 -1 ------------ Run | Yrd Mat Mat Mat Fac Was Fac Fac Was Fac Fac Was Fac Fac Was Fac Res Res Acc Com Used RIF Installer . | . . . . . . . . . . . . . . . . . . . . Robots Hacked 7 | . . . 2 1 . . . . . 3 . . 1 . . . . . . Non-combat 7 | . . . 2 1 . . . . . 3 . . 1 . . . . . . Combat . | . . . . . . . . . . . . . . . . . . . . Robot Hacks Applied 7 | . . . 2 1 . . . . . 3 . . 1 . . . . . . parse_system 1 | . . . 1 . . . . . . . . . . . . . . . . no_distress 1 | . . . 1 . . . . . . . . . . . . . . . . find_chute 4 | . . . . 1 . . . . . 2 . . 1 . . . . . . find_recycling 1 | . . . . . . . . . . 1 . . . . . . . . . Relay Couplers Released 3 | . . . . . . . . . . . . 2 . . 1 . . . . Machine Destruction 3 | . . . . . . . . . . . . 2 . . 1 . . . . Fabnet Peak Effective % . | . . . . . . . . . . . . . . . . . . . . Robots Rewired . | . . . . . . . . . . . . . . . . . . . . Allies Hacked . | . . . . . . . . . . . . . . . . . . . . Hacks Repelled . | . . . . . . . . . . . . . . . . . . . . Allies | -11 -10 -9 -8 -7 -7 -7 -6 -6 -6 -5 -5 -5 -4 -4 -4 -3 -2 -1 -1 -------- Run | Yrd Mat Mat Mat Fac Was Fac Fac Was Fac Fac Was Fac Fac Was Fac Res Res Acc Com Total Allies 35 | . . . . . . 3 1 . 2 3 18 1 1 . 2 3 1 . . Largest Group 18 | . . . . . . 3 1 . 2 1 18 8 1 . 1 1 . . . Highest-Rated Group 638 | . . . . . . 78 10 . 36 26 638 308 26 . 45 45 . . . Highest-Rated Ally 50 | . . . . . . 26 10 . 26 26 50 50 26 . 45 45 . . . Total Orders 12 | . . . . . . 2 6 . . . . 1 1 . . 2 . . . STAY 6 | . . . . . . 1 3 . . . . . 1 . . 1 . . . FOLLOW 6 | . . . . . . 1 3 . . . . 1 . . . 1 . . . Ally Attacks 137 | . . . . . . . . . . . 82 55 . . . . . . . Total Damage 5848 | . . . . . . . . . . . 3464 2384 . . . . . . . Kills 22 | . . . . . . . . . . . 8 14 . . . . . . . Allies Corrupted 2 | . . . . . . . . . . 1 . . . . . 1 . . . Allies Melted . | . . . . . . . . . . . . . . . . . . . . Intel | -11 -10 -9 -8 -7 -7 -7 -6 -6 -6 -5 -5 -5 -4 -4 -4 -3 -2 -1 -1 ------- Run | Yrd Mat Mat Mat Fac Was Fac Fac Was Fac Fac Was Fac Fac Was Fac Res Res Acc Com Active Infowar (turns) 17811 | 145 1227 2815 498 861 54 873 637 38 1562 908 119 1904 926 30 1127 1154 556 1262 1115 Optics 2789 | . . . . . . . . . . . . . . . . . 412 1262 1115 Sensors 9557 | . . . 170 635 5 604 427 . 1194 798 119 1729 750 30 1002 1050 470 574 . Terrain 1854 | . 537 988 328 . . . . . . . . . . . . . . 1 . Structural 613 | . . . . 15 49 307 66 . . . . . . . . . 176 . . Seismic 2783 | 145 690 1905 . . . . . . . . . . . . . . . 43 . T.N.C. 293 | . . . . . . . . . . 119 119 55 . . . . . . . Triangulation 1745 | . . . . . . . 100 38 283 201 . 337 20 . 46 235 249 236 . Jamming 2507 | . . . . . . . 20 . 69 125 . 111 159 . 115 389 192 734 593 ECM 1059 | . . . . 211 . 160 34 . 279 59 . . . . . 99 112 105 . Robot Analysis Total 102 | . 2 . 1 . . 2 . . 96 . . . . . . . 1 . . Derelict Logs Recovered . | . . . . . . . . . . . . . . . . . . . . Drone Launches . | . . . . . . . . . . . . . . . . . . . . Drone Recoveries . | . . . . . . . . . . . . . . . . . . . . Exploration | -11 -10 -9 -8 -7 -7 -7 -6 -6 -6 -5 -5 -5 -4 -4 -4 -3 -2 -1 -1 ------------- Run | Yrd Mat Mat Mat Fac Was Fac Fac Was Fac Fac Was Fac Fac Was Fac Res Res Acc Com Turns Passed 21557 | 230 1607 3037 2499 1111 98 983 697 38 1727 908 119 1944 1048 34 1364 1168 556 1262 1127 Spaces Moved 31818 | 111 725 1206 973 2408 205 1851 1730 135 4602 2087 247 3785 2570 106 2847 2147 1330 1697 1056 Core 16 | 3 . . . 10 . 1 . . 1 . . 1 . . . . . . . Treads 2811 | 108 623 1107 973 . . . . . . . . . . . . . . . . Legs . | . . . . . . . . . . . . . . . . . . . . Wheels 201 | . 102 99 . . . . . . . . . . . . . . . . . Hover 2266 | . . . . . . . . . . . . . . . . . . 1210 1056 Flight 26524 | . . . . 2398 205 1850 1730 135 4601 2087 247 3784 2570 106 2847 2147 1330 487 . Fastest Speed 5 | 50 110 95 150 14 26 14 5 23 5 5 23 5 5 20 5 5 5 7 23 Average Speed 36 | 157 170 149 163 29 26 29 22 23 22 22 23 22 19 20 20 17 17 34 39 Slowest Speed 450 | 160 240 240 240 250 26 350 26 23 350 23 23 450 20 20 91 20 83 108 140 Overloaded Moves 555 | . . . . 35 . 23 77 . 82 22 . 75 9 . 138 21 64 4 5 Propulsion Burnouts . | . . . . . . . . . . . . . . . . . . . . Robots Hopped 193 | . . . . 14 . 6 11 . 33 13 . 35 16 . 30 22 8 5 . Potential Cave-ins 51 | . . . . . . . . . . . . 2 26 . 6 . 3 14 . Cave-ins Triggered 1 | . . . . . . . . . . . . . . . 1 . . . . Exploration Rate (%) 61 | 5 87 94 81 55 96 52 39 77 67 42 94 70 53 91 65 48 36 45 36 Regions Visited 19 Branch Regions 1 Pre-discovered Areas 2 | . . . 1 . . . . . 1 . . . . . . . . . . Known Exits Taken 10 | . 1 1 1 . . 1 . . 1 . . 1 . . 1 1 1 1 . Unknown Exits Taken 1 | 1 . . . . . . . . . . . . . . . . . . . Scrap Searched . | . . . . . . . . . . . . . . . . . . . . Spaces Dug 481 | . 3 12 36 41 1 30 26 . 32 59 2 64 27 . 48 17 24 39 20 Terrain Destroyed 845 | . 3 12 62 41 1 30 26 . 36 84 2 84 72 . 91 100 42 85 74 Melee 331 | . . 1 . 41 1 24 26 . 31 59 2 64 11 . . . 18 37 16 Projectile 265 | . 3 7 . . . . . . 1 . . 15 54 . 84 29 24 37 11 AOE 249 | . . 4 62 . . 6 . . 4 25 . 5 7 . 7 71 . 11 47 Terrain Rammed . | . . . . . . . . . . . . . . . . . . . . Walls Destroyed . | . . . . . . . . . . . . . . . . . . . . Machines Disabled . | . . . . . . . . . . . . . . . . . . . . Actions | -11 -10 -9 -8 -7 -7 -7 -6 -6 -6 -5 -5 -5 -4 -4 -4 -3 -2 -1 -1 --------- Run | Yrd Mat Mat Mat Fac Was Fac Fac Was Fac Fac Was Fac Fac Was Fac Res Res Acc Com Total 39176 | 140 975 2109 1623 2677 246 2228 1951 141 5111 2376 305 4614 2976 118 3500 2775 1568 2180 1563 Wait 4675 | 2 150 595 396 150 35 269 152 6 349 167 53 581 247 5 484 444 150 249 191 Move 31429 | 110 724 1205 972 2381 204 1838 1709 134 4535 2061 246 3718 2539 105 2787 2106 1313 1687 1055 Hop 179 | . . . . 13 . 6 10 . 33 13 . 31 15 . 28 18 8 4 . Pick Up 227 | 7 13 20 20 7 2 10 7 1 19 7 . 25 12 2 20 11 5 11 28 Fast Attach 180 | 6 6 17 27 7 . 2 2 . 9 7 2 15 5 1 18 6 4 28 18 Attach 162 | 2 3 5 9 9 1 1 3 . 19 4 . 20 18 1 17 12 2 13 23 Detach 90 | 1 3 2 2 2 . 1 1 . 15 3 . 9 9 1 9 5 1 13 13 Swap 313 | . 8 28 27 27 2 36 18 . 18 17 . 29 17 1 15 22 14 13 21 Drop 246 | . 10 35 18 13 1 13 4 . 19 8 2 25 10 2 20 11 5 26 24 Fire 989 | 12 58 171 125 . . 1 . . 21 5 . 66 83 . 91 140 35 53 128 Melee 581 | . . 3 3 66 1 30 43 . 72 80 2 95 21 . . . 22 83 60 Ram 2 | . . . . . . . . . . . . . . . 2 . . . . Kick . | . . . . . . . . . . . . . . . . . . . . Crush 7 | . . 1 6 . . . . . . . . . . . . . . . . Escape Stasis 15 | . . . . . . . . . . . . . . . 8 . 5 . 2 Rewire . | . . . . . . . . . . . . . . . . . . . . Trap 81 | . . 27 18 2 . 21 2 . 2 4 . . . . 1 . 4 . . Miscellaneous . | . . . . . . . . . . . . . . . . . . . . Route ------- -11/Scrapyard -10/Materials (discovered 6 exits: *Mat x3 / [*Min x2] / Sub) -9/Materials (discovered 4 exits: *Mat x3 / [*Min]) -8/Materials (discovered 3 exits: *Fac x3) -7/Factory (discovered 6 exits: *Fac x3 / [*Sto] / *Low x2) -7/Waste -7/Factory (discovered 5 exits: *Fac x4 / [*Sto]) -6/Factory (discovered 5 exits: *Fac x4 / *Low) -6/Waste -6/Factory (discovered 6 exits: *Fac x3 / *Low x2 / [*Ext]) -5/Factory (discovered 4 exits: *Fac x3 / *Upp) -5/Waste -5/Factory (discovered 6 exits: *Fac x4 / *Upp x2) -4/Factory (discovered 5 exits: *Res x4 / *Upp) -4/Waste -4/Factory (discovered 5 exits: *Res x4 / *Upp) -3/Research (discovered 4 exits: *Res x3 / [*Arm]) -2/Research (discovered 3 exits: *Acc x3) -1/Access (discovered 2 exits: Sur / *Com) -1/Command To Epsilon Eridani History --------- Turn | Location | Event 2 | -11/Scrapyard | Met Revision 17 9 | -11/Scrapyard | Discovered new exit (range 16) 231 | -11/Scrapyard | Entered Materials 308 | -10/Materials | Build established: Mutant 803 | -10/Materials | Discovered new exit (range 3) 890 | -10/Materials | Discovered new exit (range 13) 949 | -10/Materials | Learned location of 2 exits from Subcaves 990 | -10/Materials | Identified exit to Materials 990 | -10/Materials | Identified exit to Subcaves 1037 | -10/Materials | Learned location of 1 exit from Storage 1048 | -10/Materials | Learned 4 Recycling zone layouts 1056 | -10/Materials | Loaded intel: 2 recycling unit locations 1072 | -10/Materials | Learned location of 1 exit from Storage 1231 | -10/Materials | Core integrity fell below 50% 1431 | -10/Materials | Derelicts attacked the area 1728 | -10/Materials | Discovered new exit (range 6) 1798 | -10/Materials | Repaired Lgt. Treads 1838 | -10/Materials | Entered another Materials area 1838 | -9/Materials | Evolved 2 slots: Propulsion x1, Utility x1 1839 | -9/Materials | Identified exit to Materials 2555 | -9/Materials | Discovered new exit (range 10) 2575 | -9/Materials | Build established: Scavenger-Mutant 3402 | -9/Materials | Discovered exit to Materials (range 14) 3508 | -9/Materials | Build established: Mutant 3858 | -9/Materials | Repaired Lgt. Armor Plating 4437 | -9/Materials | Core integrity fell below 50% 4875 | -9/Materials | Entered another Materials area 4875 | -8/Materials | Evolved 2 slots: Propulsion x1, Utility x1 5066 | -8/Materials | Discovered new exit (range 14) 5273 | -8/Materials | Build established: Scavenger-Mutant 5506 | -8/Materials | Lost 4 parts (1n2u1w) 5620 | -8/Materials | Repaired Lgt. Treads 5647 | -8/Materials | Repaired Lgt. Treads 6029 | -8/Materials | Identified exit to Factory 6122 | -8/Materials | Learned 2 Lower Caves zone layouts 6154 | -8/Materials | Learned Factory emergency access door positions 6175 | -8/Materials | Learned Factory stockpile data 6312 | -8/Materials | Destroyed 8 combat bots 6672 | -8/Materials | Central database locked down 6809 | -8/Materials | Lost 3 parts (2u1w) 7374 | -8/Materials | Entered Factory 7374 | -7/Factory | Evolved 2 slots: Utility x2 7375 | -7/Factory | Identified exit to Lower Caves 7420 | -7/Factory | Discovered new exit (range 8) 7560 | -7/Factory | Discovered new exit (range 14) 7576 | -7/Factory | Identified exit to Factory 7684 | -7/Factory | Central database locked down 7691 | -7/Factory | Build established: Hacker-Sprinter 7749 | -7/Factory | Discovered exit to Factory (range 12) 7776 | -7/Factory | Fabricated Cld. VTOL Module? 7859 | -7/Factory | Fabricated Cld. VTOL Module? 7883 | -7/Factory | Fabricated Cld. VTOL Module (x1) 8065 | -7/Factory | Fabricated Imp. Hacking Suite (x1) 8199 | -7/Factory | Repaired Spear 8235 | -7/Factory | Repaired Cld. VTOL Module 8338 | -7/Factory | Discovered new exit (range 10) 8379 | -7/Factory | Fabricated Cld. VTOL Module? 8485 | -7/Factory | Manually triggered Chute Trap 8485 | -7/Factory | Sucked down chute 8485 | -7/Factory | Entered Waste 8493 | -7/Waste | Spotted C-40 Crusher 8495 | -7/Waste | Spotted C-40 Crusher 8500 | -7/Waste | EMP discharged 8515 | -7/Waste | Spotted C-40 Crusher 8515 | -7/Waste | Spotted C-40 Crusher 8523 | -7/Waste | Spotted C-40 Crusher 8524 | -7/Waste | Spotted C-40 Crusher 8548 | -7/Waste | Discovered new exit (range 13) 8554 | -7/Waste | Identified exit to Factory 8583 | -7/Waste | Entered Factory 8870 | -7/Factory | Discovered new exit (range 12) 9105 | -7/Factory | Discovered exit to Factory (range 14) 9282 | -7/Factory | Fabricated Cld. VTOL Module (x1) 9382 | -7/Factory | Fabricated Imp. Hacking Suite (x1) 9383 | -7/Factory | Search patrols dispatched 9480 | -7/Factory | Repaired Cld. VTOL Module 9537 | -7/Factory | Repaired Mic. Fission Core+ 9566 | -7/Factory | Entered another Factory area 9566 | -6/Factory | Evolved 2 slots: Propulsion x1, Utility x1 9659 | -6/Factory | Repaired Adv. Trap Extractor 9687 | -6/Factory | Discovered new exit (range 9) 9696 | -6/Factory | Identified exit to Lower Caves 9852 | -6/Factory | Unchained authorized (CL-0N3) 9937 | -6/Factory | Fabricated Adv. Hacking Suite? 10101 | -6/Factory | Repaired Cld. VTOL Module? 10132 | -6/Factory | Identified exit to Factory 10167 | -6/Factory | Fabricated Adv. Hacking Suite? 10176 | -6/Factory | Spotted Lightning 10216 | -6/Factory | Spotted B-75 Beast 10263 | -6/Factory | Manually triggered Chute Trap 10263 | -6/Factory | Sucked down chute 10263 | -6/Factory | Entered Waste 10274 | -6/Waste | Spotted C-40 Crusher 10278 | -6/Waste | EMP discharged 10278 | -6/Waste | System corruption reached 10% 10278 | -6/Waste | Spotted C-40 Crusher 10282 | -6/Waste | Spotted C-40 Crusher 10283 | -6/Waste | Spotted C-40 Crusher 10285 | -6/Waste | Spotted C-40 Crusher 10286 | -6/Waste | Discovered new exit (range 15) 10288 | -6/Waste | Spotted C-40 Crusher 10295 | -6/Waste | Identified exit to Factory 10301 | -6/Waste | Entered Factory 10370 | -6/Factory | Fabricated Adv. Hacking Suite (x1) 10487 | -6/Factory | Fabricated Gui. EMP Blaster (x1) 10514 | -6/Factory | Unchained authorized (CL-0N3) 10526 | -6/Factory | Central database locked down 10593 | -6/Factory | Repaired Imp. Fusion Compressor 10598 | -6/Factory | K-01 Serf reconstituted as Striker 10598 | -6/Factory | Spotted Striker 10727 | -6/Factory | Destroyed Striker 10848 | -6/Factory | Destroyed CL-0N3 10849 | -6/Factory | Extracted schematics, analyses from CL-0N3's data core 10979 | -6/Factory | Fabricated Imp. System Restoration Module (x2) 11000 | -6/Factory | Build established: Machinist-Sprinter 11161 | -6/Factory | Noticed a derelict Sapper rigging charges 11164 | -6/Factory | Discovered exit to Lower Caves (range 8) 11242 | -6/Factory | Fabricated Exp. Propulsion Shielding? 11277 | -6/Factory | Discovered exit to Factory (range 16) 11376 | -6/Factory | Learned 4 Upper Caves zone layouts 11437 | -6/Factory | Learned 4 Extension zone layouts 11442 | -6/Factory | Discovered exit to Lower Caves (range 12) 11467 | -6/Factory | Repaired Mic. Fission Core+ 11488 | -6/Factory | Learned Extension terminal intel 11529 | -6/Factory | Learned 2 Lower Caves zone layouts 11549 | -6/Factory | Discovered exit to Factory (range 14) 11560 | -6/Factory | Learned location of 1 exit from Proximity Caves 11609 | -6/Factory | Learned Hub_04(d) emergency access door positions 11610 | -6/Factory | Fabricated Adv. System Shield? 11701 | -6/Factory | Search patrols dispatched 11759 | -6/Factory | Repaired Gui. EMP Blaster? 11781 | -6/Factory | Discovered exit to Factory (range 11) 11821 | -6/Factory | Repaired Cld. VTOL Module 11831 | -6/Factory | Discovered new exit (range 12) 12028 | -6/Factory | Entered another Factory area 12028 | -5/Factory | Evolved 2 slots: Utility x2 12029 | -5/Factory | Identified exit to Upper Caves 12154 | -5/Factory | Build established: Wizard-Sprinter 12154 | -5/Factory | Central database locked down 12166 | -5/Factory | Discovered new exit (range 15) 12265 | -5/Factory | Learned Research terminal intel 12333 | -5/Factory | Learned 2 Extension zone layouts 12393 | -5/Factory | Identified exit to Factory 12400 | -5/Factory | Unchained authorized (GL-D0S) 12441 | -5/Factory | Learned location of 1 exit from Extension 12478 | -5/Factory | Learned location of 1 exit from Proximity Caves 12491 | -5/Factory | Fabricated Imp. System Guard (x2) 12506 | -5/Factory | Learned Armory stockpile data 12544 | -5/Factory | Loaded intel: 128 trap records 12590 | -5/Factory | Learned 4 Proximity Caves zone layouts 12615 | -5/Factory | Fabricated Triangulator (x2) 12843 | -5/Factory | Fabricated Adv. System Shield (x1) 12935 | -5/Factory | Cargo convoy interrupted 12936 | -5/Factory | Manually triggered Chute Trap 12936 | -5/Factory | Sucked down chute 12936 | -5/Factory | Entered Waste 12938 | -5/Waste | Spotted C-40 Crusher 12938 | -5/Waste | Spotted C-40 Crusher 12939 | -5/Waste | Spotted C-40 Crusher 12964 | -5/Waste | Spotted C-40 Crusher 12967 | -5/Waste | Spotted C-40 Crusher 12971 | -5/Waste | Spotted C-40 Crusher 12985 | -5/Waste | Warlord forces began an assault 12999 | -5/Waste | Allies destroyed C-40 Crusher 13008 | -5/Waste | Allies destroyed C-40 Crusher 13011 | -5/Waste | Allies destroyed C-40 Crusher 13013 | -5/Waste | Discovered new exit (range 13) 13018 | -5/Waste | Identified exit to Factory 13037 | -5/Waste | Lost 4 allies 13055 | -5/Waste | Entered Factory 13055 | -5/Factory | Accompanied by 8 allies 13091 | -5/Factory | Garrison activated, responded to threat 13102 | -5/Factory | Repaired Cld. VTOL Module 13208 | -5/Factory | Spotted B-75 Beast 13226 | -5/Factory | Lost 3 allies 13235 | -5/Factory | Fabricated Tri-rail Accelerator (x1) 13237 | -5/Factory | Unchained authorized (GL-D0S) 13405 | -5/Factory | Discovered exit to Factory (range 13) 13529 | -5/Factory | Repaired Adv. Sensor Array 13597 | -5/Factory | Fabricated Cld. Nuclear Pulse Thruster (x1) 13642 | -5/Factory | Fabricated Cld. Nuclear Pulse Thruster (x1) 13743 | -5/Factory | Repaired Cld. Nuclear Pulse Thruster 13749 | -5/Factory | Allied Derelicts emerged from ambush trap array 13898 | -5/Factory | Cargo convoy interrupted 13976 | -5/Factory | Fabricated Cld. Nuclear Pulse Thruster (x1) 14255 | -5/Factory | Search patrols dispatched 14322 | -5/Factory | Central database locked down 14555 | -5/Factory | Search patrols dispatched 14771 | -5/Factory | Repaired Gui. EMP Blaster 14871 | -5/Factory | Repaired Tri-rail Accelerator? 14999 | -5/Factory | Entered another Factory area 14999 | -4/Factory | Evolved 2 slots: Power x1, Propulsion x1 15004 | -4/Factory | Identified exit to Research 15044 | -4/Factory | Discovered new exit (range 15) 15046 | -4/Factory | Identified exit to Upper Caves 15209 | -4/Factory | Repaired Imp. Corruption Screen? 15482 | -4/Factory | Fabricated Cld. Field Propulsion Drive (x1) 15749 | -4/Factory | Search patrols dispatched 15762 | -4/Factory | Fabricated Exp. Hacking Suite (x1) 15844 | -4/Factory | Unchained authorized (GL-D0S) 15999 | -4/Factory | Search patrols dispatched 16007 | -4/Factory | Repaired Adv. Sensor Array 16047 | -4/Factory | Manually triggered Chute Trap 16047 | -4/Factory | Sucked down chute 16047 | -4/Factory | Entered Waste 16054 | -4/Waste | Spotted C-40 Crusher 16057 | -4/Waste | Found Prototype Device 16061 | -4/Waste | Spotted C-40 Crusher 16062 | -4/Waste | EMP discharged 16066 | -4/Waste | Identified Exp. EM Disruption Field 16071 | -4/Waste | Spotted C-40 Crusher 16071 | -4/Waste | Spotted C-40 Crusher 16073 | -4/Waste | Spotted C-40 Crusher 16073 | -4/Waste | Spotted C-40 Crusher 16073 | -4/Waste | Discovered new exit (range 12) 16076 | -4/Waste | Identified exit to Factory 16081 | -4/Waste | Entered Factory 16182 | -4/Factory | Fabricated Exp. Hacking Suite (x1) 16248 | -4/Factory | Fabricated Exp. Hacking Suite (x1) 16284 | -4/Factory | System corruption reached 10% 16331 | -4/Factory | Search patrols dispatched 16376 | -4/Factory | Discovered exit to Upper Caves (range 6) 16418 | -4/Factory | Crushed by falling debris 16449 | -4/Factory | Lost 3 parts (1p1n1u) 16481 | -4/Factory | Fabricated Exp. Hacking Suite (x1) 16560 | -4/Factory | Repaired Cld. Nuclear Pulse Thruster 16606 | -4/Factory | Repaired Cld. Nuclear Pulse Thruster 16656 | -4/Factory | Repaired Cld. Field Propulsion Drive 16878 | -4/Factory | Spotted B-86 Titan 16885 | -4/Factory | Repaired Exp. Propulsion Shielding? 16920 | -4/Factory | Fabricated Cld. Field Propulsion Drive (x1) 16965 | -4/Factory | Fabricated Cld. Field Propulsion Drive (x1) 17027 | -4/Factory | Repaired Cld. Nuclear Pulse Thruster 17081 | -4/Factory | Search patrols dispatched 17273 | -4/Factory | Cargo convoy interrupted 17290 | -4/Factory | Spotted Striker 17364 | -4/Factory | System corruption reached 30% 17377 | -4/Factory | Spotted B-86 Titan 17396 | -4/Factory | Lost 5 parts (2p2u1w) 17445 | -4/Factory | Entered Research 17445 | -3/Research | Evolved 2 slots: Propulsion x1, Utility x1 17446 | -3/Research | Loaded intel: 24 terminal locations 17559 | -3/Research | Spotted B-86 Titan 17688 | -3/Research | Discovered new exit (range 12) 17695 | -3/Research | First assault squad dispatched 17714 | -3/Research | Found Prototype Device 17714 | -3/Research | Identified Exp. Thermal Shield 17803 | -3/Research | Fabricated Prc. Energy Filter (x1) 17857 | -3/Research | Garrison activated, responded to threat 17907 | -3/Research | Central database locked down 18089 | -3/Research | Repaired Cld. Nuclear Pulse Thruster 18129 | -3/Research | Repaired Gui. EMP Blaster 18154 | -3/Research | Unchained authorized (DW-4LL) 18225 | -3/Research | Fabricated Exp. Hacking Suite? 18285 | -3/Research | DW-4LL burst out of a wall 18301 | -3/Research | Destroyed 12 combat bots 18360 | -3/Research | Identified exit to Research 18383 | -3/Research | Discovered new exit (range 15) 18384 | -3/Research | DW-4LL burst out of a wall 18446 | -3/Research | DW-4LL burst out of a wall 18452 | -3/Research | Repaired Cld. Field Propulsion Drive 18586 | -3/Research | Repaired Broken Cld. Nuclear Pulse Thruster? 18613 | -3/Research | Entered another Research area 18613 | -2/Research | Evolved 2 slots: Utility x2 18693 | -2/Research | Central database locked down 18818 | -2/Research | Unchained authorized (DW-4LL) 18850 | -2/Research | Fabricated Nanosword? 18902 | -2/Research | Identified exit to Access 18997 | -2/Research | DW-4LL burst out of a wall 19039 | -2/Research | Fabricated Exp. Melee Analysis Suite (x1) 19083 | -2/Research | DW-4LL burst out of a wall 19124 | -2/Research | Found Exp. Signal Interpreter 19134 | -2/Research | DW-4LL burst out of a wall 19169 | -2/Research | Entered Access 19169 | -1/Access | Evolved 2 slots: Propulsion x1, Weapon x1 19229 | -1/Access | Identified exit to Surface 19347 | -1/Access | Spotted B-99 Colossus 19380 | -1/Access | Fabricated Nanosword? 19456 | -1/Access | Lost 3 parts (1p1n1u) 19554 | -1/Access | Spotted B-99 Colossus 19590 | -1/Access | Repaired Cmb. Linear Gravjet 19640 | -1/Access | Fabricated Microactuators? 19736 | -1/Access | System corruption reached 10% 19899 | -1/Access | Central database locked down 19992 | -1/Access | Destroyed 7 combat bots 20147 | -1/Access | Repaired Enh. Nova Cannon 20169 | -1/Access | First assault squad dispatched 20176 | -1/Access | Spotted B-99 Colossus 20241 | -1/Access | Identified exit to Command 20282 | -1/Access | Build established: Hacker-Gladiator 20431 | -1/Access | Entered Command 20756 | -1/Command | Disengaged cave seal 20770 | -1/Command | Spotted B-99 Colossus 20885 | -1/Command | Repaired Broken Gui. EMP Blaster 20931 | -1/Command | First assault squad dispatched 21095 | -1/Command | Disengaged cave seal 21174 | -1/Command | Lost 3 parts (1p2n) 21185 | -1/Command | Destroyed 7 combat bots 21302 | -1/Command | Spotted Striker 21306 | -1/Command | Spotted Alpha 7 21340 | -1/Command | High security lockdown imminent 21343 | -1/Command | Spotted Executioner 21376 | -1/Command | Lost 3 parts (1n2u) 21392 | -1/Command | Core integrity fell below 50% 21396 | -1/Command | Destroyed Executioner 21415 | -1/Command | Destroyed Alpha 7 21420 | -1/Command | High security lockdown engaged 21421 | -1/Command | Found Prototype Ballistic Gun 21421 | -1/Command | Identified Multirail 21431 | -1/Command | Found Prototype Processor 21431 | -1/Command | Identified Exp. Target Analyzer 21445 | -1/Command | Lost 3 parts (1p2n) 21549 | -1/Command | Spotted Alpha 7 21549 | -1/Command | Spotted Striker 21549 | -1/Command | Spotted Executioner 21549 | -1/Command | Spotted Executioner 21549 | -1/Command | Spotted Executioner 21550 | -1/Command | Spotted B-99 Colossus 21551 | -1/Command | Spotted B-99 Colossus 21554 | -1/Command | Discovered exit to Surface (range 8) 21558 | *** | Escaped! Last Messages --------------- 21555_ Cmb. Linear Gravjet destroyed. 21555_ Slug penetrates Reinforced Barrier. 21555_ Penetrated by Slug. 21556_ Field strength at 76. 21556_ Field strength at 55. 21556_ Penetrated by Slug. 21556_ Slug penetrates Wall. 21556_ Penetrated by Slug. 21556_ Centrium Medium Armor Plating destroyed. 21557_ Field strength at 70. 21557_ Penetrated by Slug. 21557_ Slug penetrates Wall. 21557_ Penetrated by Slug. 21557_ Slug penetrates Wall. 21557_ Slug penetrates Executioner. 21557_ Field strength at 46. 21558_ Penetrated by Slug. 21558_ Field strength at 64. 21558_ Field strength at 37. 21558_ Cmb. Linear Gravjet destroyed. Map ----- +----------------------------------------------------+ | ??????### # | | ?????? # | | ??????? # ##### | | ????????+##### # # T"#?# ! | | ???????? ????# b # # ""#?# ! | | ???????? ????# # # ###?# | | ???????? ????# #########!/#???# | | ???????? ????# #######C #????##??##%#???# | | ?????????????#???????## /###??#"####/######## ## | | ?????????????????????# c ;#???#= #??# #? | | ????????????????????## c ;#???# #??# #? | | ????????????????????# ^ ^ #???# #??# #? | | ????????????????????#;7 ^ ##??## #?## ## | | ????????????????????# #??# ######### ## # | | ????????????????????#; %##??## # # | | ????????????????????#E ^ % #???#[= # ###### # | | ????????????????????#;KE ^E##???#!== # # ## "# | | ???????????????????## % ##?## + + ## # | | ??????????????????##;; ;;###" # # ##*#? | | ??????????????????#BB BB### # # ## #? | | ??????????????????#BB BB#?# # #? ##[#? | | ??????????????????# ^ #?# # #?#####=#? | | ??????????????????# #?# # ####### ## | | ?????????????????## #?###### | | ?????????????????#; "" #??????############ | | ?????????????????#; "@ #?????????????????? | | ?????????????????## #?????????????????? | | ??????????????????# ^ #?????????????????? | | ??????????????????# ^ #???????????####### | | ??????????????????# #???????????# ! | | ??????????????????# #???????????# | | ??????????????????############;#???????????# """ | | ??????????????????????????????##???????????# "Y" | | ???????????????????????????????????????????# " " | | ???????????????????????????????????????????# | | ???????????????????????????????????????????# ] | | ???????????????????????????????????????????# | | ???????????????????????????????????????????# """ | | ???????????????????????????????????????????# """ | | ???????????????????????????????????????????# """ | | ???????????????????????????????????????????# """ | | ???????????????????????????????????????????# | | ???????????????????????????????????????????# | | ???????????????????????????????????????????# | | ???????????????????????????????????????????####### | | ?????????????????????????????????????????????????? | | ?????????????????????????????????????????????????? | | ?????????????????????????????????????????????????? | | ?????????????????????????????????????????????????? | | ?????????????????????????????????????????????????? | +----------------------------------------------------+ Best States ------------- Heat Dissipation 90 Coolant Potential 100 Energy Generation 66 Energy Capacity 430 Matter Stores 300 Matter Capacity 300 Sight Range 23 Robot Scan Range 18 Terrain Scan Range 16 Terrain Scan Density 10 ECM Strength 4 Jamming Range 16 Power Amplification 40 Corruption Block 15 Armor Coverage 300 Resistance: TH 30 Resistance: EM 15 Core Shielding 20 Propulsion Shielding 90 Utility Shielding 66 Melee Speed Boost 40 Phase Shifting 15 Evasion (%) 85 Melee Accuracy 26 Target Analysis 10 Armor Integrity Analysis 40 Recoil Reduction 4 Energy Filtering 50 Offensive Hacking 60 Defensive Hacking 42 Trap Extractor Capacity 8 Item Schematics ----------------- Imp. Targeting Computer | -9/Materials | Extracted Sml. Storage Unit | -9/Materials | Extracted Plasma Cutter | -9/Materials | Hacked Imp. Treads | -9/Materials | Extracted Arm. Wheel | -9/Materials | Extracted Imp. EM Shotgun | -9/Materials | Extracted Lgt. Armor Plating | -8/Materials | Extracted Shotgun | -8/Materials | Extracted Lgt. Nuclear Core | -8/Materials | Extracted Visual Processing Unit | -8/Materials | Extracted Datajack | -8/Materials | Extracted VTOL Module | -8/Materials | Extracted Rocket Launcher | -8/Materials | Extracted Thermal Generator | -8/Materials | Extracted Flak Cannon | -8/Materials | Extracted Core Shielding | -8/Materials | Extracted Cld. VTOL Module | -7/Factory | Hacked Imp. Hacking Suite | -7/Factory | Hacked Imp. Medium Armor Plating | -7/Factory | Extracted ECM Suite | -7/Factory | Extracted Hrd. Light Armor Plating | -7/Factory | Extracted Imp. Field Recycling Unit | -7/Factory | Extracted Seismic Detector | -7/Factory | Extracted Mni. Grenade Launcher | -7/Factory | Scanalyzed Gauss Rifle | -7/Factory | Extracted Component Analysis Suite | -7/Factory | Extracted Imp. Propulsion Shielding | -7/Factory | Hacked Imp. Utility Shielding | -7/Factory | Hacked Plasma Cannon | -7/Factory | Hacked Greatsword | -7/Factory | Hacked Adv. Hacking Suite | -6/Factory | Hacked Lrn. Missile Launcher | -6/Factory | Hacked Imp. System Guard | -6/Factory | Hacked Adv. Melee Analysis Suite | -6/Factory | Scanalyzed Imp. System Restoration Module | -6/Factory | Hacked Exp. Propulsion Shielding | -6/Factory | Hacked Adv. System Shield | -6/Factory | Hacked Triangulator | -6/Factory | Scanalyzed Adv. Trap Extractor | -6/Factory | Scanalyzed Gui. EMP Blaster | -6/Factory | Hacked Adv. Signal Interpreter | -6/Factory | Hacked Adv. Sensor Array | -6/Factory | Hacked Imp. Fusion Compressor | -6/Factory | Scanalyzed Enh. Optical Array | -6/Factory | Scanalyzed Transmission Jammer | -6/Factory | Scanalyzed Hvy. Missile Launcher | -6/Factory | Scanalyzed Adv. Terrain Scanner | -6/Factory | Extracted Lgt. Armored Exoskeleton | -6/Factory | Extracted Fusion Compressor | -6/Factory | Hacked Adv. Weapon Cycler | -5/Factory | Hacked Adv. Plasma Cannon | -5/Factory | Hacked Mic. Antimatter Reactor | -5/Factory | Hacked Biometal Medium Treads | -5/Factory | Hacked Tri-rail Accelerator | -5/Factory | Hacked Microactuators | -5/Factory | Hacked Cld. Cesium-ion Thruster | -5/Factory | Hacked Adv. Actuator Array | -5/Factory | Hacked Cld. Nuclear Pulse Thruster | -5/Factory | Hacked Lrn. Sensor Array | -5/Factory | Hacked Plasma Sword | -5/Factory | Scanalyzed Mic. Fission Core | -5/Factory | Scanalyzed Cld. Field Propulsion Drive | -5/Factory | Hacked Exp. Signal Interpreter | -5/Factory | Hacked Exp. Melee Analysis Suite | -5/Factory | Hacked Mni. Smartbomb Launcher | -5/Factory | Hacked Exp. Hacking Suite | -5/Factory | Hacked Com. HERF Cannon | -5/Factory | Hacked Adv. Trap Scanner | -4/Factory | Hacked Nanoactuators | -4/Factory | Hacked Imp. Corruption Screen | -4/Factory | Scanalyzed Exp. Weapon Shielding | -4/Factory | Hacked Hyb. Deuterium Engine | -4/Factory | Hacked Exp. Targeting Computer | -4/Factory | Hacked Prc. Energy Filter | -4/Factory | Hacked Cld. Q-thruster | -3/Research | Scanalyzed Adv. ECM Suite | -3/Research | Scanalyzed Nanosword | -2/Research | Hacked Cmb. Linear Gravjet | -1/Access | Hacked Robot Schematics ------------------ M-13 Machinist | -10/Materials | Hacked G-47 Trooper | -7/Factory | Hacked P-60 Hacker | -7/Factory | Hacked K-01 Serf | -6/Factory | Archive T-07 Excavator | -6/Factory | Archive A-02 Transporter | -6/Factory | Archive A-15 Conveyor | -6/Factory | Archive R-06 Scavenger | -6/Factory | Archive R-10 Processor | -6/Factory | Archive M-14 Sweeper | -6/Factory | Archive M-22 Extractor | -6/Factory | Archive M-30 Cleanser | -6/Factory | Archive M-28 Smith | -6/Factory | Archive M-36 Artificer | -6/Factory | Archive O-16 Technician | -6/Factory | Archive O-24 Administrator | -6/Factory | Archive O-32 Director | -6/Factory | Archive W-16 Scout | -6/Factory | Archive W-25 Informer | -6/Factory | Archive W-44 Eye | -6/Factory | Archive S-10 Pest | -6/Factory | Archive S-27 Virus | -6/Factory | Archive S-43 Plague | -6/Factory | Archive G-34 Mercenary | -6/Factory | Archive G-50 Soldier | -6/Factory | Archive G-67 Veteran | -6/Factory | Archive G-73 Enforcer | -6/Factory | Archive B-36 Bruiser | -6/Factory | Archive B-48 Gladiator | -6/Factory | Archive B-60 Warrior | -6/Factory | Archive B-74 Champion | -6/Factory | Archive L-31 Rogue | -6/Factory | Archive L-41 Fighter | -6/Factory | Archive L-61 Swordsman | -6/Factory | Archive Y-45 Defender | -6/Factory | Archive Y-54 Guardian | -6/Factory | Archive Y-64 Sentinel | -6/Factory | Archive Y-72 Warden | -6/Factory | Archive D-53 Grenadier | -6/Factory | Archive D-63 Destroyer | -6/Factory | Archive D-83 Annihilator | -6/Factory | Archive X-57 Shotgunner | -6/Factory | Archive X-62 Marksman | -6/Factory | Archive X-67 Chaingunner | -6/Factory | Archive X-72 Disruptor | -6/Factory | Archive X-77 Beamer | -6/Factory | Archive X-82 Rainmaker | -6/Factory | Archive X-87 Electro | -6/Factory | Archive H-55 Commando | -6/Factory | Archive H-66 Slayer | -6/Factory | Archive H-77 Assassin | -6/Factory | Archive H-88 Terminator | -6/Factory | Archive P-70 Sage | -6/Factory | Archive P-80 Master | -6/Factory | Archive Fabricated ------------ Cld. VTOL Module | x1 | -7/Factory Cld. VTOL Module | x1 | -7/Factory Cld. VTOL Module | x1 | -7/Factory Imp. Hacking Suite | x1 | -7/Factory Cld. VTOL Module | x1 | -7/Factory Cld. VTOL Module | x1 | -7/Factory Imp. Hacking Suite | x1 | -7/Factory Adv. Hacking Suite | x1 | -6/Factory Adv. Hacking Suite | x1 | -6/Factory Adv. Hacking Suite | x1 | -6/Factory Gui. EMP Blaster | x1 | -6/Factory Imp. System Restoration Module | x2 | -6/Factory Exp. Propulsion Shielding | x1 | -6/Factory Adv. System Shield | x1 | -6/Factory Imp. System Guard | x2 | -5/Factory Triangulator | x2 | -5/Factory Adv. System Shield | x1 | -5/Factory Tri-rail Accelerator | x1 | -5/Factory Cld. Nuclear Pulse Thruster | x1 | -5/Factory Cld. Nuclear Pulse Thruster | x1 | -5/Factory Cld. Nuclear Pulse Thruster | x1 | -5/Factory Cld. Field Propulsion Drive | x1 | -4/Factory Exp. Hacking Suite | x1 | -4/Factory Exp. Hacking Suite | x1 | -4/Factory Exp. Hacking Suite | x1 | -4/Factory Exp. Hacking Suite | x1 | -4/Factory Cld. Field Propulsion Drive | x1 | -4/Factory Cld. Field Propulsion Drive | x1 | -4/Factory Prc. Energy Filter | x1 | -3/Research Exp. Hacking Suite | x1 | -3/Research Nanosword | x1 | -2/Research Exp. Melee Analysis Suite | x1 | -2/Research Nanosword | x1 | -1/Access Microactuators | x2 | -1/Access Repaired ---------- Lgt. Treads | 26% | -10/Materials Lgt. Armor Plating | 62% | -9/Materials Lgt. Treads | 9% | -8/Materials Lgt. Treads | 14% | -8/Materials Spear | 25% | -7/Factory Cld. VTOL Module | 73% | -7/Factory Cld. VTOL Module | 21% | -7/Factory Mic. Fission Core | 38% | -7/Factory Adv. Trap Extractor | 20% | -6/Factory Cld. VTOL Module | 50% | -6/Factory Imp. Fusion Compressor | 13% | -6/Factory Mic. Fission Core | 11% | -6/Factory Gui. EMP Blaster | 67% | -6/Factory Cld. VTOL Module | 43% | -6/Factory Cld. VTOL Module | 50% | -5/Factory Adv. Sensor Array | 20% | -5/Factory Cld. Nuclear Pulse Thruster | 68% | -5/Factory Gui. EMP Blaster | 30% | -5/Factory Tri-rail Accelerator | 74% | -5/Factory Imp. Corruption Screen | 73% | -4/Factory Adv. Sensor Array | 12% | -4/Factory Cld. Nuclear Pulse Thruster | 7% | -4/Factory Cld. Nuclear Pulse Thruster | 35% | -4/Factory Cld. Field Propulsion Drive | 33% | -4/Factory Exp. Propulsion Shielding | 14% | -4/Factory Cld. Nuclear Pulse Thruster | 28% | -4/Factory Cld. Nuclear Pulse Thruster | 32% | -3/Research Gui. EMP Blaster | 57% | -3/Research Cld. Field Propulsion Drive | 18% | -3/Research Cld. Nuclear Pulse Thruster | 34% | -3/Research | Broken Cmb. Linear Gravjet | 53% | -1/Access Enh. Nova Cannon | 23% | -1/Access Gui. EMP Blaster | 10% | -1/Command | Broken Studied --------- VTOL Module | -9/Materials | Hacked Imp. Datajack | -8/Materials | Hacked Rocket Launcher | -8/Materials | Hacked Mic. Nuclear Core | -7/Factory | Hacked Mic. Fission Core | -7/Factory | Hacked Spear | -6/Factory | Hacked Hvy. Missile Launcher | -6/Factory | Hacked Adv. Datajack | -4/Factory | Hacked Mic. Antimatter Reactor | -3/Research | Hacked Imp. Fusion Compressor | -3/Research | Hacked Lgt. Particle Reactor | -1/Access | Hacked Alien Tech Used ----------------- None Achievements -------------- Fishing Tech Infodabbler Ride The Lightning Suspicious By Nature Challenges ------------ None Game ------ Seed ArcMasterScanner Manual? 0 Play Time 11:35:12 Cumulative 421.0 hours Start 2025.11.11 @ 07:04:35 End 2025.11.12 @ 15:25:07 Sessions 7 Manual Loads 0 Difficulty Rogue Special Mode None Game No. 183 Rogue 175 Adventurer 8 Explorer 0 Win Type 0 Total 28 Types 14/1/4/3/0/1/1/1/2/1 Lore% 90 Gallery% 90 Achievement% 78 Wizard Run 0 Options --------- Layout 2 ASCII 0 Keyboard 1 Movement Numpad Keybinds 1 Fullscreen 2 Font 24/Smallcaps Map View 50x44 Zoom Use 0% Tactical HUD 1 Map Filters NONE Filters NONE Steam 1 RUN: 0fe25627-27b6-48f0-8bdd-f21229c60aa1